Workbook

Sheet Avustustaulukko
A1: 43 § (28.6.2013/478)
A3: Yhdistymisavustuksen perusosa ja lisäosa
A5: Yhdistymisavustuksen perusosa määräytyy yhdistymisessä mukana olevien kuntien lukumäärän ja asukasmäärän perusteella seuraavasti:
A7: Asukasmäärä | B7: alle 20 000 | C7: 20 000–49 999 | D7: 50 000–80 000 | E7: yli 80 000
A8: Kuntien lkm
A9: 2 | B9: 2 000 000 euroa | C9: 3 000 000 euroa | D9: 3 500 000 euroa | E9: 4 000 000 euroa | F9: 2 | G9: 2 | H9: 2 | I9: 2 | K9: 20 | L9: 50 | M9: 70 | N9: 80 | P9: =F9+K9 -> 22 | Q9: 52 | R9: 72 | S9: 82
A10: 3–4 | B10: 3 000 000 euroa | C10: 4 500 000 euroa | D10: 5 000 000 euroa | E10: 6 000 000 euroa | F10: 4 | G10: 4 | H10: 4 | I10: 4 | K10: 20 | L10: 50 | M10: 70 | N10: 80 | P10: 24 | Q10: 54 | R10: 74 | S10: 84
A11: 5–6 | B11: 4 000 000 euroa | C11: 5 500 000 euroa | D11: 6 500 000 euroa | E11: 8 000 000 euroa | F11: 6 | G11: 6 | H11: 6 | I11: 6 | K11: 20 | L11: 50 | M11: 70 | N11: 80 | P11: 26 | Q11: 56 | R11: 76 | S11: 86
A12: yli 6 | B12: 5 000 000 euroa | C12: 7 000 000 euroa | D12: 8 000 000 euroa | E12: 10 000 000 euroa | F12: 7 | G12: 7 | H12: 7 | I12: 7 | K12: 20 | L12: 50 | M12: 70 | N12: 80 | P12: 27 | Q12: 57 | R12: 77 | S12: 87
A14: Yhdistymisavustuksen lisäosaa maksetaan kuntajaon muutoksessa, jossa on mukana 4 f §:ssä tarkoitetun talousperusteen täyttävä kunta tai kuntia. Lisäosa on 150 euroa mainitun edellytyksen täyttävän kunnan asukasta kohden ja enintään miljoona euroa yhdistymistä kohden.
A16: L:lla 478/2013 lisätty 43 § on väliaikaisesti voimassa 1.7.2013-31.12.2019.
P17: 22 | Q17: 2000000 | R17: 0
P18: 24 | Q18: 3000000 | R18: 0
P19: 26 | Q19: 4000000 | R19: 0
P20: 27 | Q20: 5000000 | R20: 0
P21: 52 | Q21: 3000000 | R21: 0
P22: 54 | Q22: 4500000 | R22: 0
P23: 56 | Q23: 5500000 | R23: 0
P24: 57 | Q24: 7000000 | R24: 0
P25: 72 | Q25: 3500000 | R25: 0
P26: 74 | Q26: 5000000 | R26: 0
P27: 76 | Q27: 6500000 | R27: 0
P28: 77 | Q28: 8000000 | R28: 0
P29: 82 | Q29: 4000000 | R29: 0
P30: 84 | Q30: 6000000 | R30: 0
P31: 86 | Q31: 8000000 | R31: 0
P32: 87 | Q32: 10000000 | R32: 0

Sheet LASKELMA
A1: Kuntien yhdistämisavustusten laskenta-automaatti | K1: VM/Kunta- ja aluehallinto-osasto/MM 20.2.2015
A2: Valitse liitettävät kunnat ja yhdistymisvuosi | K2: Lähde:Tilastokeskus
C3: Kuntavalikko | G3: Kuntien asukasmäärät 31.12.2013 tiedoilla*:
F5: 1 | G5: =Q7 -> Kurikka | J5: =R7 -> 14322
F6: 2 | G6: =Q8 -> Jalasjärvi | J6: =R8 -> 7987 | Q6: Ei talousperustekuntia | X6: Suurimman kunnan asukasluku 2008
F7: 3 | G7: Ei muita liitoskuntia | J7: 0 | P7: 111 | Q7: =INDEX(Asukasluvut!$B$7:'Asukasluvut'!$B$354,P7) -> Kurikka | R7: =INDEX(Asukasluvut!$C$7:'Asukasluvut'!$C$354,P7) -> 14322 | U7: 1 | V7: Kunta | W7: =IF(R7>0,1,0) -> 1
F8: 4 | G8: Ei muita liitoskuntia | J8: 0 | P8: 50 | Q8: =INDEX(Asukasluvut!$B$7:'Asukasluvut'!$B$354,P8) -> Jalasjärvi | R8: =INDEX(Asukasluvut!$C$7:'Asukasluvut'!$C$354,P8) -> 7987 | U8: 2 | V8: Kunta | W8: =IF(R8>0,1,0) -> 1 | X8: Muiden kuntien asukasluku 2008
F9: 5 | G9: Ei muita liitoskuntia | J9: 0 | P9: 1 | Q9: =INDEX(Asukasluvut!$B$6:'Asukasluvut'!$B$354,P9) -> Ei muita liitoskuntia | R9: =INDEX(Asukasluvut!$C$6:'Asukasluvut'!$C$354,P9) -> 0 | U9: 3 | V9: Kunta | W9: 0
F10: 6 | G10: Ei muita liitoskuntia | J10: 0 | P10: 1 | Q10: =INDEX(Asukasluvut!$B$6:'Asukasluvut'!$B$354,P10) -> Ei muita liitoskuntia | R10: =INDEX(Asukasluvut!$C$6:'Asukasluvut'!$C$354,P10) -> 0 | U10: 4 | V10: Kunta | W10: 0 | X10: Asukasluku yhteensä
F11: 7 | G11: Ei muita liitoskuntia | J11: 0 | P11: 1 | Q11: =INDEX(Asukasluvut!$B$6:'Asukasluvut'!$B$354,P11) -> Ei muita liitoskuntia | R11: =INDEX(Asukasluvut!$C$6:'Asukasluvut'!$C$354,P11) -> 0 | U11: 5 | V11: Kunta | W11: 0
F12: 8 | G12: Ei muita liitoskuntia | J12: 0 | P12: 1 | Q12: =INDEX(Asukasluvut!$B$6:'Asukasluvut'!$B$354,P12) -> Ei muita liitoskuntia | R12: =INDEX(Asukasluvut!$C$6:'Asukasluvut'!$C$354,P12) -> 0 | U12: 6 | V12: Kunta | W12: 0 | X12: Kuntien määrän vähennys
F13: 9 | G13: Ei muita liitoskuntia | J13: 0 | P13: 1 | Q13: =INDEX(Asukasluvut!$B$6:'Asukasluvut'!$B$354,P13) -> Ei muita liitoskuntia | R13: =INDEX(Asukasluvut!$C$6:'Asukasluvut'!$C$354,P13) -> 0 | U13: 7 | V13: Kunta | W13: 0
F14: 10 | G14: Ei muita liitoskuntia | J14: 0 | P14: 1 | Q14: =INDEX(Asukasluvut!$B$6:'Asukasluvut'!$B$354,P14) -> Ei muita liitoskuntia | R14: =INDEX(Asukasluvut!$C$6:'Asukasluvut'!$C$354,P14) -> 0 | U14: 8 | V14: Kunta | W14: 0
F15: 11 | G15: =Q17 -> Ei muita liitoskuntia | J15: =R17 -> 0 | P15: 1 | Q15: =INDEX(Asukasluvut!$B$6:'Asukasluvut'!$B$354,P15) -> Ei muita liitoskuntia | R15: =INDEX(Asukasluvut!$C$6:'Asukasluvut'!$C$354,P15) -> 0 | U15: 9 | V15: Kunta | W15: 0
P16: 1 | Q16: =INDEX(Asukasluvut!$B$6:'Asukasluvut'!$B$354,P16) -> Ei muita liitoskuntia | R16: =INDEX(Asukasluvut!$C$6:'Asukasluvut'!$C$354,P16) -> 0 | U16: 10 | V16: Kunta | W16: 0
G17: Uuden kunnan asukasmäärä yhteensä | P17: 1 | Q17: =INDEX(Asukasluvut!$B$6:'Asukasluvut'!$B$354,P17) -> Ei muita liitoskuntia | R17: =INDEX(Asukasluvut!$C$6:'Asukasluvut'!$C$354,P17) -> 0 | U17: 11 | V17: Kunta | W17: 0
G18: =G24+G21 -> 22309 | H18: asukasta**
Q19: Yhteensä | R19: =SUM(R7:R18) -> 22309 | W19: =SUM(W7:W18) -> 2
G20: Suurimman liitoskunnan asukasmäärä | Q20: Koodi | R20: =IF(R19<20000,20,IF(R19<50000,50,IF(R19<70000,70,IF(R19>80000,80)))) -> 50 | W20: =IF(W19<3,2,IF(W19<5,4,IF(W19<7,6,IF(W19>6,7)))) -> 2
G21: =R24 -> 14322 | H21: asukasta | Q21: Yhteensä | R21: =R20+W20 -> 52
G23: Muiden liitoskuntien asukasmäärä yhteensä
G24: =R26 -> 7987 | H24: asukasta | Q24: Suurimman liitoskunnan as luku | R24: =MAX(R7:R18) -> 14322
Q25: Uuden kunnan asukasluku | R25: =SUM(R7:R17) -> 22309
G26: Kuntia mukana liitoksessa | Q26: Muiden kuntien as luku | R26: =SUM(R7:R17)-R24 -> 7987
G27: =W19 -> 2 | H27: kuntaa*** | Q27: Muiden kuntien as luku | R27: =SUM(R7:R17)-R24 -> 7987
G28: Kuntien lukumäärän vähennys liitoksessa | O28: 2
C29: Liitoksen voimaantulovuosi | G29: =W19-1 -> 1 | H29: kuntaa | P29: =INDEX(Asukasluvut!$F$7:'Asukasluvut'!$F$10,O28) -> 2016 | Q29: =INDEX(Asukasluvut!$G$7:'Asukasluvut'!$G$10,O28) -> 1
S31: Yhdistymisavustukset
B32: Yhdistymisavustus kolmelle vuodelle yhteensä | G32: * Asukasmääränä käytetään kunnan asukasmäärää | S32: 2015 | T32: 2016 | U32: 2017 | V32: 2018 | W32: 2019 | X32: 2020
B33: Euroa | G33: kuntajaon muutoksen voimaantulovuotta edeltävän vuoden | S33: =VLOOKUP($R$21,Avustustaulukko!P17:R32,2) -> 3000000 | T33: =VLOOKUP($R$21,Avustustaulukko!P17:R32,2) -> 3000000 | U33: =VLOOKUP($R$21,Avustustaulukko!P17:R32,2) -> 3000000 | V33: =VLOOKUP($R$21,Avustustaulukko!P17:R32,3) -> 0 | W33: =VLOOKUP($R$21,Avustustaulukko!P17:R32,3) -> 0 | X33: =VLOOKUP($R$21,Avustustaulukko!P17:R32,3) -> 0
C34: =IF(Q29=1,S33,IF(Q29=2,V33)) -> 3000000 | G34: alussa. Vuonna 2015 käytetään 31.12.2013 tietoja,
G35: vuonna 2016 käytetään 31.12.2014 tietoja jne. | O35: 3 | Q35: Lisäosat
B36: Yhdistymisavustuksen vuosittainen jakautuminen | G36: Tämä voi vaikuttaa yhdistymisavustuksiin. | O36: 1
B37: Euroa | P37: =INDEX(Q6:Q17,O35) -> Jalasjärvi | Q37: =INDEX(R6:R17,O35) -> 7987 | S37: =IF(Q29=1,1,IF(Q29=2,0)) -> 1
B38: =P29 -> 2016 | C38: =B38+1 -> 2017 | D38: =C38+1 -> 2018 | E38: Yhteensä | G38: ** Avustustaulukon raja-arvot alle 20 000 as, 20 000-49 999 as, 50 000 - 80 000 as ja yli 80 000 as | P38: =INDEX(Q6:Q17,O36) -> Ei talousperustekuntia | Q38: =INDEX(R6:R17,O36) -> 0
B39: =C34*0.4 -> 1200000 | C39: =(C34-B39)/2 -> 900000 | D39: =C34-B39-C39 -> 900000 | E39: =SUM(B39:D39) -> 3000000
G40: *** Avustustaulukon raja-arvot 2, 3-4, 5-6 ja yli 6 kuntaa | Q40: =SUM(Q37:Q39) -> 7987
B41: Yhdistymisavustuksen mahdollinen lisäosa**** | G41: **** Mikäli joku tai jotkut kunnista täyttävät talousperusteen
G42: HUOM: Valittaessa kunta valikosta lisäosa lasketaan vain mekaanisesti asukasluvun mukaan, | Q42: Lisäosa euroina
G43: talousperusteen toteutumista ei laskelmassa huomioida! | Q43: =150*Q40*S37 -> 1198050
G44: Lisäosa 150 € asukas talousperusteen täyttävissä kunnissa. | P44: Leikkaus | Q44: =IF(Q43>1000000,1000000,Q43) -> 1000000
G45: Maksimi lisäosa yhteensä 1 000 000 euroa.
B47: =B38 -> 2016 | C47: =C38 -> 2017 | D47: =D38 -> 2018 | E47: =E38 -> Yhteensä
B48: =E48*0.4 -> 400000 | C48: =(E48-B48)/2 -> 300000 | D48: =E48-B48-C48 -> 300000 | E48: =Q44 -> 1000000

Sheet Asukasluvut
A1: Virallinen väkiluku 31.12.2013
A3: Aluejako 1.1.2015: 301 kuntaa
A5: KOKO MAA - HELA LANDET | C5: 5451270
B6: Ei muita liitoskuntia | C6: 0
A7: 5 | B7: Alajärvi | C7: 10227 | F7: 2015 | G7: 1
A8: 9 | B8: Alavieska | C8: 2740 | F8: 2016 | G8: 1
A9: 10 | B9: Alavus | C9: 12228 | F9: 2017 | G9: 1
A10: 16 | B10: Asikkala | C10: 8405 | F10: 2018 | G10: 2
A11: 18 | B11: Askola | C11: 4991 | F11: 2019 | G11: 2
A12: 19 | B12: Aura | C12: 3962 | F12: 2020 | G12: 2
A13: 20 | B13: Akaa | C13: 17108
A14: 46 | B14: Enonkoski | C14: 1522
A15: 47 | B15: Enontekiö - Enontekis | C15: 1891
A16: 49 | B16: Espoo - Esbo | C16: 260753
A17: 50 | B17: Eura | C17: 12368
A18: 51 | B18: Eurajoki - Euraåminne | C18: 5931
A19: 52 | B19: Evijärvi | C19: 2685
A20: 61 | B20: Forssa | C20: 17667
A21: 69 | B21: Haapajärvi | C21: 7616
A22: 71 | B22: Haapavesi | C22: 7241
A23: 72 | B23: Hailuoto - Karlö | C23: 999
A24: 74 | B24: Halsua | C24: 1229
A25: 75 | B25: Hamina - Fredrikshamn | C25: 21203
A26: 77 | B26: Hankasalmi | C26: 5404
A27: 78 | B27: Hanko - Hangö | C27: 9109
A28: 79 | B28: Harjavalta | C28: 7407
A29: 81 | B29: Hartola | C29: 3098
A30: 82 | B30: Hattula | C30: 9684
A31: 86 | B31: Hausjärvi | C31: 8808
A32: 90 | B32: Heinävesi | C32: 3667
A33: 91 | B33: Helsinki - Helsingfors | C33: 612664
A34: 92 | B34: Vantaa - Vanda | C34: 208098
A35: 97 | B35: Hirvensalmi | C35: 2338
A36: 98 | B36: Hollola | C36: 21987
A37: 99 | B37: Honkajoki | C37: 1819
A38: 102 | B38: Huittinen | C38: 10543
A39: 103 | B39: Humppila | C39: 2463
A40: 105 | B40: Hyrynsalmi | C40: 2565
A41: 106 | B41: Hyvinkää - Hyvinge | C41: 46188
A42: 108 | B42: Hämeenkyrö - Tavastkyro | C42: 10582
A43: 109 | B43: Hämeenlinna - Tavastehus | C43: 67806
A44: 111 | B44: Heinola | C44: 19979
A45: 139 | B45: Ii | C45: 9610
A46: 140 | B46: Iisalmi - Idensalmi | C46: 22171
A47: 142 | B47: Iitti | C47: 6981
A48: 143 | B48: Ikaalinen - Ikalis | C48: 7303
A49: 145 | B49: Ilmajoki | C49: 12099
A50: 146 | B50: Ilomantsi - Ilomants | C50: 5614
A51: 148 | B51: Inari - Enare | C51: 6794
A52: 149 | B52: Inkoo - Ingå | C52: 5562
A53: 151 | B53: Isojoki - Storå | C53: 2257
A54: 152 | B54: Isokyrö - Storkyro | C54: 4854
A55: 153 | B55: Imatra | C55: 28219
A56: 164 | B56: Jalasjärvi | C56: 7987
A57: 165 | B57: Janakkala | C57: 16842
A58: 167 | B58: Joensuu | C58: 74471
A59: 169 | B59: Jokioinen - Jockis | C59: 5595
A60: 171 | B60: Joroinen - Jorois | C60: 5213
A61: 172 | B61: Joutsa | C61: 4857
A62: 174 | B62: Juankoski | C62: 4995
A63: 176 | B63: Juuka | C63: 5203
A64: 177 | B64: Juupajoki | C64: 2039
A65: 178 | B65: Juva | C65: 6684
A66: 179 | B66: Jyväskylä | C66: 134658
A67: 181 | B67: Jämijärvi | C67: 1971
A68: 182 | B68: Jämsä | C68: 22138
A69: 186 | B69: Järvenpää - Träskända | C69: 39953
A70: 202 | B70: Kaarina - S:t Karins | C70: 31798
A71: 204 | B71: Kaavi | C71: 3261
A72: 205 | B72: Kajaani - Kajana | C72: 37868
A73: 208 | B73: Kalajoki | C73: 12644
A74: 211 | B74: Kangasala | C74: 30345
A75: 213 | B75: Kangasniemi | C75: 5801
A76: 214 | B76: Kankaanpää | C76: 11972
A77: 216 | B77: Kannonkoski | C77: 1520
A78: 217 | B78: Kannus | C78: 5675
A79: 218 | B79: Karijoki - Bötom | C79: 1462
A80: 224 | B80: Karkkila - Högfors | C80: 9074
A81: 226 | B81: Karstula | C81: 4343
A82: 230 | B82: Karvia | C82: 2523
A83: 231 | B83: Kaskinen - Kaskö | C83: 1350
A84: 232 | B84: Kauhajoki | C84: 14081
A85: 233 | B85: Kauhava | C85: 17065
A86: 235 | B86: Kauniainen - Grankulla | C86: 9101
A87: 236 | B87: Kaustinen - Kaustby | C87: 4288
A88: 239 | B88: Keitele | C88: 2427
A89: 240 | B89: Kemi | C89: 22120
A90: 241 | B90: Keminmaa | C90: 8565
A91: 244 | B91: Kempele | C91: 16605
A92: 245 | B92: Kerava - Kervo | C92: 34913
A93: 249 | B93: Keuruu | C93: 10310
A94: 250 | B94: Kihniö | C94: 2111
A95: 256 | B95: Kinnula | C95: 1769
A96: 257 | B96: Kirkkonummi - Kyrkslätt | C96: 37899
A97: 260 | B97: Kitee | C97: 11197
A98: 261 | B98: Kittilä | C98: 6478
A99: 263 | B99: Kiuruvesi | C99: 8866
A100: 265 | B100: Kivijärvi | C100: 1259
A101: 271 | B101: Kokemäki - Kumo | C101: 7769
A102: 272 | B102: Kokkola - Karleby | C102: 47031
A103: 273 | B103: Kolari | C103: 3885
A104: 275 | B104: Konnevesi | C104: 2846
A105: 276 | B105: Kontiolahti | C105: 14422
A106: 280 | B106: Korsnäs | C106: 2218
A107: 283 | B107: Hämeenkoski | C107: 2086
A108: 284 | B108: Koski Tl | C108: 2423
A109: 285 | B109: Kotka | C109: 54771
A110: 286 | B110: Kouvola | C110: 86926
A111: 287 | B111: Kristiinankaupunki - Kristinestad | C111: 7001
A112: 288 | B112: Kruunupyy - Kronoby | C112: 6682
A113: 290 | B113: Kuhmo | C113: 9104
A114: 291 | B114: Kuhmoinen | C114: 2409
A115: 297 | B115: Kuopio | C115: 110113
A116: 300 | B116: Kuortane | C116: 3819
A117: 301 | B117: Kurikka | C117: 14322
A118: 304 | B118: Kustavi - Gustavs | C118: 869
A119: 305 | B119: Kuusamo | C119: 15952
A120: 309 | B120: Outokumpu | C120: 7262
A121: 312 | B121: Kyyjärvi | C121: 1431
A122: 316 | B122: Kärkölä | C122: 4755
A123: 317 | B123: Kärsämäki | C123: 2721
A124: 319 | B124: Köyliö - Kjulo | C124: 2688
A125: 320 | B125: Kemijärvi | C125: 7983
A126: 322 | B126: Kemiönsaari - Kimitoön | C126: 7012
A127: 398 | B127: Lahti - Lahtis | C127: 103364
A128: 399 | B128: Laihia - Laihela | C128: 8007
A129: 400 | B129: Laitila | C129: 8487
A130: 402 | B130: Lapinlahti | C130: 10176
A131: 403 | B131: Lappajärvi | C131: 3317
A132: 405 | B132: Lappeenranta - Villmanstrand | C132: 72658
A133: 407 | B133: Lapinjärvi - Lappträsk | C133: 2820
A134: 408 | B134: Lapua - Lappo | C134: 14692
A135: 410 | B135: Laukaa | C135: 18588
A136: 416 | B136: Lemi | C136: 3130
A137: 418 | B137: Lempäälä | C137: 21829
A138: 420 | B138: Leppävirta | C138: 10170
A139: 421 | B139: Lestijärvi | C139: 818
A140: 422 | B140: Lieksa | C140: 12303
A141: 423 | B141: Lieto - Lundo | C141: 19128
A142: 425 | B142: Liminka - Limingo | C142: 9577
A143: 426 | B143: Liperi | C143: 12396
A144: 430 | B144: Loimaa | C144: 16700
A145: 433 | B145: Loppi | C145: 8341
A146: 434 | B146: Loviisa - Lovisa | C146: 15493
A147: 435 | B147: Luhanka | C147: 763
A148: 436 | B148: Lumijoki | C148: 2084
A149: 440 | B149: Luoto - Larsmo | C149: 5065
A150: 441 | B150: Luumäki | C150: 4992
A151: 442 | B151: Luvia | C151: 3355
A152: 444 | B152: Lohja - Lojo | C152: 47703
A153: 445 | B153: Parainen | C153: 15507
A154: 475 | B154: Maalahti - Malax | C154: 5580
A155: 480 | B155: Marttila | C155: 2056
A156: 481 | B156: Masku | C156: 9729
A157: 483 | B157: Merijärvi | C157: 1153
A158: 484 | B158: Merikarvia - Sastmola | C158: 3226
A159: 489 | B159: Miehikkälä | C159: 2145
A160: 491 | B160: Mikkeli - S:t Michel | C160: 54635
A161: 494 | B161: Muhos | C161: 8998
A162: 495 | B162: Multia | C162: 1777
A163: 498 | B163: Muonio | C163: 2383
A164: 499 | B164: Mustasaari - Korsholm | C164: 19153
A165: 500 | B165: Muurame | C165: 9572
A166: 503 | B166: Mynämäki | C166: 7950
A167: 504 | B167: Myrskylä - Mörskom | C167: 1987
A168: 505 | B168: Mäntsälä | C168: 20534
A169: 507 | B169: Mäntyharju | C169: 6287
A170: 508 | B170: Mänttä-Vilppula | C170: 10898
A171: 529 | B171: Naantali - Nådendal | C171: 18859
A172: 531 | B172: Nakkila | C172: 5706
A173: 532 | B173: Nastola | C173: 14985
A174: 535 | B174: Nivala | C174: 10942
A175: 536 | B175: Nokia | C175: 32690
A176: 538 | B176: Nousiainen - Nousis | C176: 4872
A177: 541 | B177: Nurmes | C177: 8191
A178: 543 | B178: Nurmijärvi | C178: 41178
A179: 545 | B179: Närpiö - Närpes | C179: 9335
A180: 560 | B180: Orimattila | C180: 16347
A181: 561 | B181: Oripää | C181: 1423
A182: 562 | B182: Orivesi | C182: 9630
A183: 563 | B183: Oulainen | C183: 7772
A184: 564 | B184: Oulu - Uleåborg | C184: 193798
A185: 576 | B185: Padasjoki | C185: 3279
A186: 577 | B186: Paimio - Pemar | C186: 10590
A187: 578 | B187: Paltamo | C187: 3620
A188: 580 | B188: Parikkala | C188: 5509
A189: 581 | B189: Parkano | C189: 6836
A190: 583 | B190: Pelkosenniemi | C190: 966
A191: 584 | B191: Perho | C191: 2923
A192: 588 | B192: Pertunmaa | C192: 1842
A193: 592 | B193: Petäjävesi | C193: 4125
A194: 593 | B194: Pieksämäki | C194: 19288
A195: 595 | B195: Pielavesi | C195: 4824
A196: 598 | B196: Pietarsaari - Jakobstad | C196: 19633
A197: 599 | B197: Pedersören kunta - Pedersöre | C197: 10970
A198: 601 | B198: Pihtipudas | C198: 4354
A199: 604 | B199: Pirkkala - Birkala | C199: 18369
A200: 607 | B200: Polvijärvi | C200: 4664
A201: 608 | B201: Pomarkku - Påmark | C201: 2340
A202: 609 | B202: Pori - Björneborg | C202: 85399
... 152 more rows
